[Event "Chigorin Memorial 2019"]
[Site "Saint Petersburg"]
[Date "2019.10.07"]
[Round "3.2"]
[White "Smirnov, Artem"]
[Black "Ter-Sahakyan, Samvel"]
[Result "1/2-1/2"]
[ECO "E20"]
[WhiteElo "2416"]
[BlackElo "2616"]
[Annotator "ChessBase"]
[PlyCount "163"]
[EventDate "2019.10.05"]
[EventType "swiss"]
[EventCountry "RUS"]
[SourceTitle "playchess.com"]
[Source "ChessBase"]
[SourceQuality "1"]
[TimeControl "5400+30"]

1. d4 {[%emt 0:00:00]} Nf6 {[%emt 0:00:00]} 2. c4 {[%emt 0:00:00]} e6 {[%emt 0:00:00]} 3. Nc3 {[%emt 0:00:00]} Bb4 {[%emt 0:00:00]} 4. f3 {[%emt 0:00:00]} d5 {[%emt 0:00:48]} 5. a3 {[%emt 0:00:10]} Be7 {[%emt 0:00:13]} 6. e4 {[%emt 0:00:15]} dxe4 {[%emt 0:00:06]} 7. fxe4 {[%emt 0:00:05]} c5 {[%emt 0:00:08]} 8. d5 {[%emt 0:00:07]} O-O {[%emt 0:05:04]} 9. Nf3 {[%emt 0:10:09]} exd5 {[%emt 0:02:18]} 10. exd5 {[%emt 0:00:13]} Bg4 {[%emt 0:05:05]} 11. Be2 {[%emt 0:00:14]} Bxf3 {[%emt 0:04:16]} 12. Bxf3 {[%emt 0:00:10]} Bd6 {[%emt 0:00:08]} 13. O-O {[%emt 0:05:50]} Nbd7 {[%emt 0:00:27]} 14. g3 {[%emt 0:14:26]} a6 {[%emt 0:10:42]} 15. Bg2 {[%emt 0:01:10]} Re8 {[%emt 0:04:11]} 16. Bf4 {[%emt 0:02:58]} Qb6 {[%emt 0:08:46]} 17. Bxd6 {[%emt 0:12:12]} Qxd6 {[%emt 0:00:16]} 18. Qd2 {[%emt 0:00:06]} Re5 {[%emt 0:09:34]} 19. Rae1 {[%emt 0:11:33]} Rae8 {[%emt 0:00:51]} 20. Qf4 {[%emt 0:01:55]} h6 {[%emt 0:09:28]} 21. Bh3 {[%emt 0:12:44]} g5 {[%emt 0:08:11]} 22. Qf2 {[%emt 0:00:57]} Rxe1 {[%emt 0:01:33]} 23. Rxe1 {[%emt 0:00:07]} Rxe1+ {[%emt 0:02:21]} 24. Qxe1 {[%emt 0:00:06]} Ne5 {[%emt 0:00:52]} 25. Qe2 {[%emt 0:01:52]} h5 {[%emt 0:01:23]} 26. Bg2 {[%emt 0:03:50]} g4 {[%emt 0:02:35]} 27. b3 {[%emt 0:04:56]} Ng6 {[%emt 0:06:36]} 28. Ne4 {[%emt 0:06:46]} Nxe4 {[%emt 0:04:45]} 29. Bxe4 {[%emt 0:08:39]} Qe5 {[%emt 0:03:04]} 30. Kg2 {[%emt 0:01:01]} f5 {[%emt 0:05:43]} 31. Bd3 {[%emt 0:00:04]} Qxe2+ {[%emt 0:00:05]} 32. Bxe2 {[%emt 0:00:03]} Kf7 {[%emt 0:00:11]} 33. h3 {[%emt 0:02:50]} Kf6 {[%emt 0:02:50]} 34. hxg4 {[%emt 0:00:09]} hxg4 {[%emt 0:00:16]} 35. Kf2 {[%emt 0:00:10]} Ke5 {[%emt 0:01:49]} 36. Ke3 {[%emt 0:00:07]} Ne7 {[%emt 0:00:34]} 37. a4 {[%emt 0:01:40]} a5 {[%emt 0:01:04]} 38. Bd3 {[%emt 0:00:25]} Nc8 {[%emt 0:00:22]} 39. Bc2 {[%emt 0:00:16]} Nd6 {[%emt 0:00:38]} 40. Bd3 {[%emt 0:00:10]} Ne8 {[%emt 0:00:14]} 41. Bb1 {[%emt 0:01:23]} Nf6 {[%emt 0:00:14]} 42. Bc2 {[%emt 0:00:26]} Nh5 {[%emt 0:01:35]} 43. Kf2 {[%emt 0:00:05]} f4 {[%emt 0:01:07]} 44. gxf4+ {[%emt 0:00:18]} Kxf4 {[%emt 0:00:04]} 45. Bg6 {[%emt 0:01:13]} Nf6 {[%emt 0:00:18]} 46. Kg2 {[%emt 0:00:17]} Kg5 {[%emt 0:01:20]} 47. Bc2 {[%emt 0:00:17]} Kf4 {[%emt 0:00:22]} 48. Bg6 {[%emt 0:00:05]} b6 {[%emt 0:00:24]} 49. Bc2 {[%emt 0:01:03]} Ne8 {[%emt 0:00:41]} 50. Bd3 {[%emt 0:00:50]} Nd6 {[%emt 0:00:13]} 51. Bg6 {[%emt 0:00:06]} Nb7 {[%emt 0:00:41]} 52. Bd3 {[%emt 0:00:19]} Nd6 {[%emt 0:00:28]} 53. Bg6 {[%emt 0:00:05]} g3 {[%emt 0:00:47]} 54. Bc2 {[%emt 0:00:51]} Kg4 {[%emt 0:00:21]} 55. Bd1+ {[%emt 0:00:13]} Kf4 {[%emt 0:00:16]} 56. Bc2 {[%emt 0:00:03]} Ne8 {[%emt 0:00:47]} 57. Bg6 {[%emt 0:00:15]} Nf6 {[%emt 0:00:11]} 58. Bd3 {[%emt 0:02:00]} Ng4 {[%emt 0:01:00]} 59. Bg6 {[%emt 0:00:42]} Ne3+ {[%emt 0:00:30]} 60. Kg1 {[%emt 0:00:21]} Ke5 {[%emt 0:00:12]} 61. Bd3 {[%emt 0:00:39]} Kf6 {[%emt 0:00:42]} 62. Be4 {[%emt 0:00:23]} Ke7 {[%emt 0:00:17]} 63. Bd3 {[%emt 0:00:26]} Kd7 {[%emt 0:00:15]} 64. Be4 {[%emt 0:00:25]} Kd6 {[%emt 0:00:04]} 65. Bd3 {[%emt 0:00:26]} Ke5 {[%emt 0:00:04]} 66. Bg6 {[%emt 0:00:39]} Kf6 {[%emt 0:01:11]} 67. Bd3 {[%emt 0:00:06]} Kg5 {[%emt 0:00:08]} 68. Bh7 {[%emt 0:01:04]} Ng4 {[%emt 0:00:59]} 69. Kg2 {[%emt 0:00:28]} Kf4 {[%emt 0:00:20]} 70. Bd3 {[%emt 0:00:29]} Ne5 {[%emt 0:01:14]} 71. Bc2 {[%emt 0:00:30]} Nf3 {[%emt 0:00:34]} 72. Bd1 {[%emt 0:00:34]} Ne1+ {[%emt 0:00:36]} 73. Kg1 {[%emt 0:00:21]} Nd3 {[%emt 0:00:31]} 74. Kg2 {[%emt 0:00:37]} Ne5 {[%emt 0:00:26]} 75. Bc2 {[%emt 0:00:28]} Ng4 {[%emt 0:00:33]} 76. Bd3 {[%emt 0:00:30]} Ne5 {[%emt 0:00:27]} 77. Bc2 {[%emt 0:00:04]} Nd7 {[%emt 0:00:30]} 78. Bd3 {[%emt 0:00:33]} Nf6 {[%emt 0:00:18]} 79. Bc2 {[%emt 0:00:22]} Ng4 {[%emt 0:00:13]} 80. Bd3 {[%emt 0:00:49]} Ne3+ {[%emt 0:00:19]} 81. Kg1 {[%emt 0:00:06]} Ke5 {[%emt 0:00:43]} 82. Bg6 {[%emt 0:00:34]} 1/2-1/2